{"text_format":"3","workbook":"xlsx","n_sheets":2,"sheets":["Controlador de Emagrecimento","cálculos"],"not_rendered":{"charts":1,"defined_names":7},"read":"whole","date_system":"1900"}

{"sheet":"Controlador de Emagrecimento","index":0,"n_rows":129,"n_cols":11,"rows_kept":129,"merged":[[0,5,0,9],[1,4,3,9]]}
[null,"META DE PESO","EXIBIÇÃO DE GRÁFICO",null,null," PERDA DE PESO DE KIMBERLY"]
[{"$nulls":4},"CONTROLADOR"]
[null,{"v":172,"d":"172.0"},"SEMANAL",{"$nulls":7}," "]
[]
[]
[{"$nulls":10}," "]
{"$rows_empty":18}
[null,"DATA","PESO"]
[null,"2012-11-30",{"v":176,"d":"176.0"}]
[null,"2012-12-07",{"v":176,"d":"176.0"}]
[null,"2012-12-14",177.6]
[null,"2012-12-21",176.5]
[null,"2012-12-28",176.1]
[null,"2013-01-04",{"v":174,"d":"174.0"}]
[null,"2013-01-11",{"v":173,"d":"173.0"}]
[null,"2013-01-18",{"v":172,"d":"172.0"}]
[null,"2013-01-25",{"v":172,"d":"172.0"}]
[null,"2013-02-01",{"v":173,"d":"173.0"}]
[null,"2013-02-08",{"v":174,"d":"174.0"}]
[null,"2013-02-15",{"v":175,"d":"175.0"}]
[null,"2013-02-22"]
[null,"2013-03-01"]
[null,"2013-03-08"]
[null,"2013-03-15"]
[null,"2013-03-22"]
[null,"2013-03-29"]
[null,"2013-04-05"]
[null,"2013-04-12"]
[null,"2013-04-19"]
[null,"2013-04-26"]
[null,"2013-05-03"]
[null,"2013-05-10"]
[null,"2013-05-17"]
[null,"2013-05-24"]
[null,"2013-05-31"]
[null,"2013-06-07"]
[null,"2013-06-14"]
[null,"2013-06-21"]
[null,"2013-06-28"]
[null,"2013-07-05"]
[null,"2013-07-12"]
[null,"2013-07-19"]
[null,"2013-07-26"]
[null,"2013-08-02"]
[null,"2013-08-09"]
[null,"2013-08-16"]
[null,"2013-08-23"]
[null,"2013-08-30"]
[null,"2013-09-06"]
[null,"2013-09-13"]
[null,"2013-09-20"]
[null,"2013-09-27"]
[null,"2013-10-04"]
[null,"2013-10-11"]
[null,"2013-10-18"]
[null,"2013-10-25"]
[null,"2013-11-01"]
[null,"2013-11-08"]
[null,"2013-11-15"]
[null,"2013-11-22"]
[null,"2013-11-29"]
[null,"2013-12-06"]
[null,"2013-12-13"]
[null,"2013-12-20"]
[null,"2013-12-27"]
[null,"2014-01-03"]
[null,"2014-01-10"]
[null,"2014-01-17"]
[null,"2014-01-24"]
[null,"2014-01-31"]
[null,"2014-02-07"]
[null,"2014-02-14"]
[null,"2014-02-21"]
[null,"2014-02-28"]
[null,"2014-03-07"]
[null,"2014-03-14"]
[null,"2014-03-21"]
[null,"2014-03-28"]
[null,"2014-04-04"]
[null,"2014-04-11"]
[null,"2014-04-18"]
[null,"2014-04-25"]
[null,"2014-05-02"]
[null,"2014-05-09"]
[null,"2014-05-16"]
[null,"2014-05-23"]
[null,"2014-05-30"]
[null,"2014-06-06"]
[null,"2014-06-13"]
[null,"2014-06-20"]
[null,"2014-06-27"]
[null,"2014-07-04"]
[null,"2014-07-11"]
[null,"2014-07-18"]
[null,"2014-07-25"]
[null,"2014-08-01"]
[null,"2014-08-08"]
[null,"2014-08-15"]
[null,"2014-08-22"]
[null,"2014-08-29"]
[null,"2014-09-05"]
[null,"2014-09-12"]
[null,"2014-09-19"]
[null,"2014-09-26"]
[null,"2014-10-03"]
[null,"2014-10-10"]
[null,"2014-10-17"]
[null,"2014-10-24"]
[null,"2014-10-31"]
[null,"2014-11-07"]
[null,"2014-11-14"]
[null,"2014-11-21"]

{"sheet":"cálculos","index":1,"n_rows":108,"n_cols":17,"rows_kept":108,"hidden":true}
["***  Planilha deve permanecer oculta ***"]
[]
[{"$f":"COUNTIF(A5:A108,FALSE)","v":13},"Períodos","Valores",{"$nulls":3},{"$f":"COUNTIF(H5:H28,\">\"&0)","v":4},"Períodos",null,"Valores"]
[null,"Semana",null,null,true,null,null,"Mês","FIM DO MÊS"]
[{"$f":"IF(('Controlador de Emagrecimento'!C26=0)*('Controlador de Emagrecimento'!C25=0),TRUE)","v":false},{"$f":"IF(A5,0,IF('Controlador de Emagrecimento'!B26=0,'Controlador de Emagrecimento'!B25+5,'Controlador de Emagrecimento'!B26))","v":"2012-11-30"},{"$f":"'Controlador de Emagrecimento'!C26","v":176},{"$f":"MIN(PeríodosGráfico)","v":"2012-11-30"},{"$f":"IF($E$4,MetaPeso,NA())","v":172},null,null,{"$f":"DATE(YEAR(B5),MONTH(B5),1)","v":"2012-11-01"},{"$f":"EOMONTH(H5,0)","v":"2012-11-30"},{"$f":"IFERROR(AVERAGEIFS(TabelaPeso[PESO],TabelaPeso[DATA],\">=\"&H5,TabelaPeso[DATA],\"<=\"&I5),NA())","v":176}]
[{"$f":"IF(('Controlador de Emagrecimento'!C27=0)*('Controlador de Emagrecimento'!C26=0),TRUE)","v":false},{"$f":"IF(A6,0,IF('Controlador de Emagrecimento'!B27=0,'Controlador de Emagrecimento'!B26+5,'Controlador de Emagrecimento'!B27))","v":"2012-12-07"},{"$f":"'Controlador de Emagrecimento'!C27","v":176},{"$f":"MAX(PeríodosGráfico)","v":"2013-02-22"},172,null,null,{"$f":"IF(I5+1>MAX($B:$B),NA(),I5+1)","v":"2012-12-01"},"2012-12-31",{"$f":"IFERROR(AVERAGEIFS(TabelaPeso[PESO],TabelaPeso[DATA],\">=\"&H6,TabelaPeso[DATA],\"<=\"&I6),NA())","v":176.55}]
[{"$f":"IF(('Controlador de Emagrecimento'!C28=0)*('Controlador de Emagrecimento'!C27=0),TRUE)","v":false},{"$f":"IF(A7,0,IF('Controlador de Emagrecimento'!B28=0,'Controlador de Emagrecimento'!B27+5,'Controlador de Emagrecimento'!B28))","v":"2012-12-14"},{"$f":"'Controlador de Emagrecimento'!C28","v":177.6},{"$nulls":4},{"$f":"IF(I6+1>MAX($B:$B),NA(),I6+1)","v":"2013-01-01"},"2013-01-31",{"$f":"IFERROR(AVERAGEIFS(TabelaPeso[PESO],TabelaPeso[DATA],\">=\"&H7,TabelaPeso[DATA],\"<=\"&I7),NA())","v":172.75}]
[{"$f":"IF(('Controlador de Emagrecimento'!C29=0)*('Controlador de Emagrecimento'!C28=0),TRUE)","v":false},{"$f":"IF(A8,0,IF('Controlador de Emagrecimento'!B29=0,'Controlador de Emagrecimento'!B28+5,'Controlador de Emagrecimento'!B29))","v":"2012-12-21"},{"$f":"'Controlador de Emagrecimento'!C29","v":176.5},{"$nulls":4},"2013-02-01","2013-02-28",{"$f":"IFERROR(AVERAGEIFS(TabelaPeso[PESO],TabelaPeso[DATA],\">=\"&H8,TabelaPeso[DATA],\"<=\"&I8),NA())","v":174}]
[{"$f":"IF(('Controlador de Emagrecimento'!C30=0)*('Controlador de Emagrecimento'!C29=0),TRUE)","v":false},{"$f":"IF(A9,0,IF('Controlador de Emagrecimento'!B30=0,'Controlador de Emagrecimento'!B29+5,'Controlador de Emagrecimento'!B30))","v":"2012-12-28"},{"$f":"'Controlador de Emagrecimento'!C30","v":176.1},{"$nulls":4},{"$error":"#N/A"},{"$error":"#N/A"},{"$f":"IFERROR(AVERAGEIFS(TabelaPeso[PESO],TabelaPeso[DATA],\">=\"&H9,TabelaPeso[DATA],\"<=\"&I9),NA())","v":{"$error":"#N/A"}}]
[{"$f":"IF(('Controlador de Emagrecimento'!C31=0)*('Controlador de Emagrecimento'!C30=0),TRUE)","v":false},{"$f":"IF(A10,0,IF('Controlador de Emagrecimento'!B31=0,'Controlador de Emagrecimento'!B30+5,'Controlador de Emagrecimento'!B31))","v":"2013-01-04"},{"$f":"'Controlador de Emagrecimento'!C31","v":174},{"$nulls":4},{"$error":"#N/A"},{"$error":"#N/A"},{"$f":"IFERROR(AVERAGEIFS(TabelaPeso[PESO],TabelaPeso[DATA],\">=\"&H10,TabelaPeso[DATA],\"<=\"&I10),NA())","v":{"$error":"#N/A"}}]
[{"$f":"IF(('Controlador de Emagrecimento'!C32=0)*('Controlador de Emagrecimento'!C31=0),TRUE)","v":false},{"$f":"IF(A11,0,IF('Controlador de Emagrecimento'!B32=0,'Controlador de Emagrecimento'!B31+5,'Controlador de Emagrecimento'!B32))","v":"2013-01-11"},{"$f":"'Controlador de Emagrecimento'!C32","v":173},{"$nulls":4},{"$error":"#N/A"},{"$error":"#N/A"},{"$f":"IFERROR(AVERAGEIFS(TabelaPeso[PESO],TabelaPeso[DATA],\">=\"&H11,TabelaPeso[DATA],\"<=\"&I11),NA())","v":{"$error":"#N/A"}},{"$nulls":6},{"$f":"MAX($B:$B)","v":"2013-02-22"}]
[{"$f":"IF(('Controlador de Emagrecimento'!C33=0)*('Controlador de Emagrecimento'!C32=0),TRUE)","v":false},{"$f":"IF(A12,0,IF('Controlador de Emagrecimento'!B33=0,'Controlador de Emagrecimento'!B32+5,'Controlador de Emagrecimento'!B33))","v":"2013-01-18"},{"$f":"'Controlador de Emagrecimento'!C33","v":172},{"$nulls":4},{"$error":"#N/A"},{"$error":"#N/A"},{"$f":"IFERROR(AVERAGEIFS(TabelaPeso[PESO],TabelaPeso[DATA],\">=\"&H12,TabelaPeso[DATA],\"<=\"&I12),NA())","v":{"$error":"#N/A"}}]
[{"$f":"IF(('Controlador de Emagrecimento'!C34=0)*('Controlador de Emagrecimento'!C33=0),TRUE)","v":false},{"$f":"IF(A13,0,IF('Controlador de Emagrecimento'!B34=0,'Controlador de Emagrecimento'!B33+5,'Controlador de Emagrecimento'!B34))","v":"2013-01-25"},{"$f":"'Controlador de Emagrecimento'!C34","v":172},{"$nulls":4},{"$error":"#N/A"},{"$error":"#N/A"},{"$f":"IFERROR(AVERAGEIFS(TabelaPeso[PESO],TabelaPeso[DATA],\">=\"&H13,TabelaPeso[DATA],\"<=\"&I13),NA())","v":{"$error":"#N/A"}}]
[{"$f":"IF(('Controlador de Emagrecimento'!C35=0)*('Controlador de Emagrecimento'!C34=0),TRUE)","v":false},{"$f":"IF(A14,0,IF('Controlador de Emagrecimento'!B35=0,'Controlador de Emagrecimento'!B34+5,'Controlador de Emagrecimento'!B35))","v":"2013-02-01"},{"$f":"'Controlador de Emagrecimento'!C35","v":173},{"$nulls":4},{"$error":"#N/A"},{"$error":"#N/A"},{"$f":"IFERROR(AVERAGEIFS(TabelaPeso[PESO],TabelaPeso[DATA],\">=\"&H14,TabelaPeso[DATA],\"<=\"&I14),NA())","v":{"$error":"#N/A"}}]
[{"$f":"IF(('Controlador de Emagrecimento'!C36=0)*('Controlador de Emagrecimento'!C35=0),TRUE)","v":false},{"$f":"IF(A15,0,IF('Controlador de Emagrecimento'!B36=0,'Controlador de Emagrecimento'!B35+5,'Controlador de Emagrecimento'!B36))","v":"2013-02-08"},{"$f":"'Controlador de Emagrecimento'!C36","v":174},{"$nulls":4},{"$error":"#N/A"},{"$error":"#N/A"},{"$f":"IFERROR(AVERAGEIFS(TabelaPeso[PESO],TabelaPeso[DATA],\">=\"&H15,TabelaPeso[DATA],\"<=\"&I15),NA())","v":{"$error":"#N/A"}}]
[{"$f":"IF(('Controlador de Emagrecimento'!C37=0)*('Controlador de Emagrecimento'!C36=0),TRUE)","v":false},{"$f":"IF(A16,0,IF('Controlador de Emagrecimento'!B37=0,'Controlador de Emagrecimento'!B36+5,'Controlador de Emagrecimento'!B37))","v":"2013-02-15"},{"$f":"'Controlador de Emagrecimento'!C37","v":175},{"$nulls":4},{"$error":"#N/A"},{"$error":"#N/A"},{"$f":"IFERROR(AVERAGEIFS(TabelaPeso[PESO],TabelaPeso[DATA],\">=\"&H16,TabelaPeso[DATA],\"<=\"&I16),NA())","v":{"$error":"#N/A"}}]
[{"$f":"IF(('Controlador de Emagrecimento'!C38=0)*('Controlador de Emagrecimento'!C37=0),TRUE)","v":false},{"$f":"IF(A17,0,IF('Controlador de Emagrecimento'!B38=0,'Controlador de Emagrecimento'!B37+5,'Controlador de Emagrecimento'!B38))","v":"2013-02-22"},{"$f":"'Controlador de Emagrecimento'!C38","v":0},{"$nulls":4},{"$error":"#N/A"},{"$error":"#N/A"},{"$f":"IFERROR(AVERAGEIFS(TabelaPeso[PESO],TabelaPeso[DATA],\">=\"&H17,TabelaPeso[DATA],\"<=\"&I17),NA())","v":{"$error":"#N/A"}}]
[{"$f":"IF(('Controlador de Emagrecimento'!C39=0)*('Controlador de Emagrecimento'!C38=0),TRUE)","v":true},{"$f":"IF(A18,0,IF('Controlador de Emagrecimento'!B39=0,'Controlador de Emagrecimento'!B38+5,'Controlador de Emagrecimento'!B39))","v":"00:00:00"},{"$f":"'Controlador de Emagrecimento'!C39","v":0},{"$nulls":4},{"$error":"#N/A"},{"$error":"#N/A"},{"$f":"IFERROR(AVERAGEIFS(TabelaPeso[PESO],TabelaPeso[DATA],\">=\"&H18,TabelaPeso[DATA],\"<=\"&I18),NA())","v":{"$error":"#N/A"}}]
[{"$f":"IF(('Controlador de Emagrecimento'!C40=0)*('Controlador de Emagrecimento'!C39=0),TRUE)","v":true},{"$f":"IF(A19,0,IF('Controlador de Emagrecimento'!B40=0,'Controlador de Emagrecimento'!B39+5,'Controlador de Emagrecimento'!B40))","v":"00:00:00"},{"$f":"'Controlador de Emagrecimento'!C40","v":0},{"$nulls":4},{"$error":"#N/A"},{"$error":"#N/A"},{"$f":"IFERROR(AVERAGEIFS(TabelaPeso[PESO],TabelaPeso[DATA],\">=\"&H19,TabelaPeso[DATA],\"<=\"&I19),NA())","v":{"$error":"#N/A"}}]
[{"$f":"IF(('Controlador de Emagrecimento'!C41=0)*('Controlador de Emagrecimento'!C40=0),TRUE)","v":true},{"$f":"IF(A20,0,IF('Controlador de Emagrecimento'!B41=0,'Controlador de Emagrecimento'!B40+5,'Controlador de Emagrecimento'!B41))","v":"00:00:00"},{"$f":"'Controlador de Emagrecimento'!C41","v":0},{"$nulls":4},{"$error":"#N/A"},{"$error":"#N/A"},{"$f":"IFERROR(AVERAGEIFS(TabelaPeso[PESO],TabelaPeso[DATA],\">=\"&H20,TabelaPeso[DATA],\"<=\"&I20),NA())","v":{"$error":"#N/A"}}]
[{"$f":"IF(('Controlador de Emagrecimento'!C42=0)*('Controlador de Emagrecimento'!C41=0),TRUE)","v":true},{"$f":"IF(A21,0,IF('Controlador de Emagrecimento'!B42=0,'Controlador de Emagrecimento'!B41+5,'Controlador de Emagrecimento'!B42))","v":"00:00:00"},{"$f":"'Controlador de Emagrecimento'!C42","v":0},{"$nulls":4},{"$error":"#N/A"},{"$error":"#N/A"},{"$f":"IFERROR(AVERAGEIFS(TabelaPeso[PESO],TabelaPeso[DATA],\">=\"&H21,TabelaPeso[DATA],\"<=\"&I21),NA())","v":{"$error":"#N/A"}}]
[{"$f":"IF(('Controlador de Emagrecimento'!C43=0)*('Controlador de Emagrecimento'!C42=0),TRUE)","v":true},{"$f":"IF(A22,0,IF('Controlador de Emagrecimento'!B43=0,'Controlador de Emagrecimento'!B42+5,'Controlador de Emagrecimento'!B43))","v":"00:00:00"},{"$f":"'Controlador de Emagrecimento'!C43","v":0},{"$nulls":4},{"$error":"#N/A"},{"$error":"#N/A"},{"$f":"IFERROR(AVERAGEIFS(TabelaPeso[PESO],TabelaPeso[DATA],\">=\"&H22,TabelaPeso[DATA],\"<=\"&I22),NA())","v":{"$error":"#N/A"}}]
[{"$f":"IF(('Controlador de Emagrecimento'!C44=0)*('Controlador de Emagrecimento'!C43=0),TRUE)","v":true},{"$f":"IF(A23,0,IF('Controlador de Emagrecimento'!B44=0,'Controlador de Emagrecimento'!B43+5,'Controlador de Emagrecimento'!B44))","v":"00:00:00"},{"$f":"'Controlador de Emagrecimento'!C44","v":0},{"$nulls":4},{"$error":"#N/A"},{"$error":"#N/A"},{"$f":"IFERROR(AVERAGEIFS(TabelaPeso[PESO],TabelaPeso[DATA],\">=\"&H23,TabelaPeso[DATA],\"<=\"&I23),NA())","v":{"$error":"#N/A"}}]
[{"$f":"IF(('Controlador de Emagrecimento'!C45=0)*('Controlador de Emagrecimento'!C44=0),TRUE)","v":true},{"$f":"IF(A24,0,IF('Controlador de Emagrecimento'!B45=0,'Controlador de Emagrecimento'!B44+5,'Controlador de Emagrecimento'!B45))","v":"00:00:00"},{"$f":"'Controlador de Emagrecimento'!C45","v":0},{"$nulls":4},{"$error":"#N/A"},{"$error":"#N/A"},{"$f":"IFERROR(AVERAGEIFS(TabelaPeso[PESO],TabelaPeso[DATA],\">=\"&H24,TabelaPeso[DATA],\"<=\"&I24),NA())","v":{"$error":"#N/A"}}]
[{"$f":"IF(('Controlador de Emagrecimento'!C46=0)*('Controlador de Emagrecimento'!C45=0),TRUE)","v":true},{"$f":"IF(A25,0,IF('Controlador de Emagrecimento'!B46=0,'Controlador de Emagrecimento'!B45+5,'Controlador de Emagrecimento'!B46))","v":"00:00:00"},{"$f":"'Controlador de Emagrecimento'!C46","v":0},{"$nulls":4},{"$error":"#N/A"},{"$error":"#N/A"},{"$f":"IFERROR(AVERAGEIFS(TabelaPeso[PESO],TabelaPeso[DATA],\">=\"&H25,TabelaPeso[DATA],\"<=\"&I25),NA())","v":{"$error":"#N/A"}}]
[{"$f":"IF(('Controlador de Emagrecimento'!C47=0)*('Controlador de Emagrecimento'!C46=0),TRUE)","v":true},{"$f":"IF(A26,0,IF('Controlador de Emagrecimento'!B47=0,'Controlador de Emagrecimento'!B46+5,'Controlador de Emagrecimento'!B47))","v":"00:00:00"},{"$f":"'Controlador de Emagrecimento'!C47","v":0},{"$nulls":4},{"$error":"#N/A"},{"$error":"#N/A"},{"$f":"IFERROR(AVERAGEIFS(TabelaPeso[PESO],TabelaPeso[DATA],\">=\"&H26,TabelaPeso[DATA],\"<=\"&I26),NA())","v":{"$error":"#N/A"}}]
[{"$f":"IF(('Controlador de Emagrecimento'!C48=0)*('Controlador de Emagrecimento'!C47=0),TRUE)","v":true},{"$f":"IF(A27,0,IF('Controlador de Emagrecimento'!B48=0,'Controlador de Emagrecimento'!B47+5,'Controlador de Emagrecimento'!B48))","v":"00:00:00"},{"$f":"'Controlador de Emagrecimento'!C48","v":0},{"$nulls":4},{"$error":"#N/A"},{"$error":"#N/A"},{"$f":"IFERROR(AVERAGEIFS(TabelaPeso[PESO],TabelaPeso[DATA],\">=\"&H27,TabelaPeso[DATA],\"<=\"&I27),NA())","v":{"$error":"#N/A"}}]
[{"$f":"IF(('Controlador de Emagrecimento'!C49=0)*('Controlador de Emagrecimento'!C48=0),TRUE)","v":true},{"$f":"IF(A28,0,IF('Controlador de Emagrecimento'!B49=0,'Controlador de Emagrecimento'!B48+5,'Controlador de Emagrecimento'!B49))","v":"00:00:00"},{"$f":"'Controlador de Emagrecimento'!C49","v":0},{"$nulls":4},{"$error":"#N/A"},{"$error":"#N/A"},{"$f":"IFERROR(AVERAGEIFS(TabelaPeso[PESO],TabelaPeso[DATA],\">=\"&H28,TabelaPeso[DATA],\"<=\"&I28),NA())","v":{"$error":"#N/A"}}]
[{"$f":"IF(('Controlador de Emagrecimento'!C50=0)*('Controlador de Emagrecimento'!C49=0),TRUE)","v":true},{"$f":"IF(A29,0,IF('Controlador de Emagrecimento'!B50=0,'Controlador de Emagrecimento'!B49+5,'Controlador de Emagrecimento'!B50))","v":"00:00:00"},{"$f":"'Controlador de Emagrecimento'!C50","v":0}]
[{"$f":"IF(('Controlador de Emagrecimento'!C51=0)*('Controlador de Emagrecimento'!C50=0),TRUE)","v":true},{"$f":"IF(A30,0,IF('Controlador de Emagrecimento'!B51=0,'Controlador de Emagrecimento'!B50+5,'Controlador de Emagrecimento'!B51))","v":"00:00:00"},{"$f":"'Controlador de Emagrecimento'!C51","v":0}]
[{"$f":"IF(('Controlador de Emagrecimento'!C52=0)*('Controlador de Emagrecimento'!C51=0),TRUE)","v":true},{"$f":"IF(A31,0,IF('Controlador de Emagrecimento'!B52=0,'Controlador de Emagrecimento'!B51+5,'Controlador de Emagrecimento'!B52))","v":"00:00:00"},{"$f":"'Controlador de Emagrecimento'!C52","v":0}]
[{"$f":"IF(('Controlador de Emagrecimento'!C53=0)*('Controlador de Emagrecimento'!C52=0),TRUE)","v":true},{"$f":"IF(A32,0,IF('Controlador de Emagrecimento'!B53=0,'Controlador de Emagrecimento'!B52+5,'Controlador de Emagrecimento'!B53))","v":"00:00:00"},{"$f":"'Controlador de Emagrecimento'!C53","v":0}]
[{"$f":"IF(('Controlador de Emagrecimento'!C54=0)*('Controlador de Emagrecimento'!C53=0),TRUE)","v":true},{"$f":"IF(A33,0,IF('Controlador de Emagrecimento'!B54=0,'Controlador de Emagrecimento'!B53+5,'Controlador de Emagrecimento'!B54))","v":"00:00:00"},{"$f":"'Controlador de Emagrecimento'!C54","v":0}]
[{"$f":"IF(('Controlador de Emagrecimento'!C55=0)*('Controlador de Emagrecimento'!C54=0),TRUE)","v":true},{"$f":"IF(A34,0,IF('Controlador de Emagrecimento'!B55=0,'Controlador de Emagrecimento'!B54+5,'Controlador de Emagrecimento'!B55))","v":"00:00:00"},{"$f":"'Controlador de Emagrecimento'!C55","v":0}]
[{"$f":"IF(('Controlador de Emagrecimento'!C56=0)*('Controlador de Emagrecimento'!C55=0),TRUE)","v":true},{"$f":"IF(A35,0,IF('Controlador de Emagrecimento'!B56=0,'Controlador de Emagrecimento'!B55+5,'Controlador de Emagrecimento'!B56))","v":"00:00:00"},{"$f":"'Controlador de Emagrecimento'!C56","v":0}]
[{"$f":"IF(('Controlador de Emagrecimento'!C57=0)*('Controlador de Emagrecimento'!C56=0),TRUE)","v":true},{"$f":"IF(A36,0,IF('Controlador de Emagrecimento'!B57=0,'Controlador de Emagrecimento'!B56+5,'Controlador de Emagrecimento'!B57))","v":"00:00:00"},{"$f":"'Controlador de Emagrecimento'!C57","v":0}]
[{"$f":"IF(('Controlador de Emagrecimento'!C58=0)*('Controlador de Emagrecimento'!C57=0),TRUE)","v":true},{"$f":"IF(A37,0,IF('Controlador de Emagrecimento'!B58=0,'Controlador de Emagrecimento'!B57+5,'Controlador de Emagrecimento'!B58))","v":"00:00:00"},{"$f":"'Controlador de Emagrecimento'!C58","v":0}]
[{"$f":"IF(('Controlador de Emagrecimento'!C59=0)*('Controlador de Emagrecimento'!C58=0),TRUE)","v":true},{"$f":"IF(A38,0,IF('Controlador de Emagrecimento'!B59=0,'Controlador de Emagrecimento'!B58+5,'Controlador de Emagrecimento'!B59))","v":"00:00:00"},{"$f":"'Controlador de Emagrecimento'!C59","v":0}]
[{"$f":"IF(('Controlador de Emagrecimento'!C60=0)*('Controlador de Emagrecimento'!C59=0),TRUE)","v":true},{"$f":"IF(A39,0,IF('Controlador de Emagrecimento'!B60=0,'Controlador de Emagrecimento'!B59+5,'Controlador de Emagrecimento'!B60))","v":"00:00:00"},{"$f":"'Controlador de Emagrecimento'!C60","v":0}]
[{"$f":"IF(('Controlador de Emagrecimento'!C61=0)*('Controlador de Emagrecimento'!C60=0),TRUE)","v":true},{"$f":"IF(A40,0,IF('Controlador de Emagrecimento'!B61=0,'Controlador de Emagrecimento'!B60+5,'Controlador de Emagrecimento'!B61))","v":"00:00:00"},{"$f":"'Controlador de Emagrecimento'!C61","v":0}]
[{"$f":"IF(('Controlador de Emagrecimento'!C62=0)*('Controlador de Emagrecimento'!C61=0),TRUE)","v":true},{"$f":"IF(A41,0,IF('Controlador de Emagrecimento'!B62=0,'Controlador de Emagrecimento'!B61+5,'Controlador de Emagrecimento'!B62))","v":"00:00:00"},{"$f":"'Controlador de Emagrecimento'!C62","v":0}]
[{"$f":"IF(('Controlador de Emagrecimento'!C63=0)*('Controlador de Emagrecimento'!C62=0),TRUE)","v":true},{"$f":"IF(A42,0,IF('Controlador de Emagrecimento'!B63=0,'Controlador de Emagrecimento'!B62+5,'Controlador de Emagrecimento'!B63))","v":"00:00:00"},{"$f":"'Controlador de Emagrecimento'!C63","v":0}]
[{"$f":"IF(('Controlador de Emagrecimento'!C64=0)*('Controlador de Emagrecimento'!C63=0),TRUE)","v":true},{"$f":"IF(A43,0,IF('Controlador de Emagrecimento'!B64=0,'Controlador de Emagrecimento'!B63+5,'Controlador de Emagrecimento'!B64))","v":"00:00:00"},{"$f":"'Controlador de Emagrecimento'!C64","v":0}]
[{"$f":"IF(('Controlador de Emagrecimento'!C65=0)*('Controlador de Emagrecimento'!C64=0),TRUE)","v":true},{"$f":"IF(A44,0,IF('Controlador de Emagrecimento'!B65=0,'Controlador de Emagrecimento'!B64+5,'Controlador de Emagrecimento'!B65))","v":"00:00:00"},{"$f":"'Controlador de Emagrecimento'!C65","v":0}]
[{"$f":"IF(('Controlador de Emagrecimento'!C66=0)*('Controlador de Emagrecimento'!C65=0),TRUE)","v":true},{"$f":"IF(A45,0,IF('Controlador de Emagrecimento'!B66=0,'Controlador de Emagrecimento'!B65+5,'Controlador de Emagrecimento'!B66))","v":"00:00:00"},{"$f":"'Controlador de Emagrecimento'!C66","v":0}]
[{"$f":"IF(('Controlador de Emagrecimento'!C67=0)*('Controlador de Emagrecimento'!C66=0),TRUE)","v":true},{"$f":"IF(A46,0,IF('Controlador de Emagrecimento'!B67=0,'Controlador de Emagrecimento'!B66+5,'Controlador de Emagrecimento'!B67))","v":"00:00:00"},{"$f":"'Controlador de Emagrecimento'!C67","v":0}]
[{"$f":"IF(('Controlador de Emagrecimento'!C68=0)*('Controlador de Emagrecimento'!C67=0),TRUE)","v":true},{"$f":"IF(A47,0,IF('Controlador de Emagrecimento'!B68=0,'Controlador de Emagrecimento'!B67+5,'Controlador de Emagrecimento'!B68))","v":"00:00:00"},{"$f":"'Controlador de Emagrecimento'!C68","v":0}]
[{"$f":"IF(('Controlador de Emagrecimento'!C69=0)*('Controlador de Emagrecimento'!C68=0),TRUE)","v":true},{"$f":"IF(A48,0,IF('Controlador de Emagrecimento'!B69=0,'Controlador de Emagrecimento'!B68+5,'Controlador de Emagrecimento'!B69))","v":"00:00:00"},{"$f":"'Controlador de Emagrecimento'!C69","v":0}]
[{"$f":"IF(('Controlador de Emagrecimento'!C70=0)*('Controlador de Emagrecimento'!C69=0),TRUE)","v":true},{"$f":"IF(A49,0,IF('Controlador de Emagrecimento'!B70=0,'Controlador de Emagrecimento'!B69+5,'Controlador de Emagrecimento'!B70))","v":"00:00:00"},{"$f":"'Controlador de Emagrecimento'!C70","v":0}]
[{"$f":"IF(('Controlador de Emagrecimento'!C71=0)*('Controlador de Emagrecimento'!C70=0),TRUE)","v":true},{"$f":"IF(A50,0,IF('Controlador de Emagrecimento'!B71=0,'Controlador de Emagrecimento'!B70+5,'Controlador de Emagrecimento'!B71))","v":"00:00:00"},{"$f":"'Controlador de Emagrecimento'!C71","v":0}]
[{"$f":"IF(('Controlador de Emagrecimento'!C72=0)*('Controlador de Emagrecimento'!C71=0),TRUE)","v":true},{"$f":"IF(A51,0,IF('Controlador de Emagrecimento'!B72=0,'Controlador de Emagrecimento'!B71+5,'Controlador de Emagrecimento'!B72))","v":"00:00:00"},{"$f":"'Controlador de Emagrecimento'!C72","v":0}]
[{"$f":"IF(('Controlador de Emagrecimento'!C73=0)*('Controlador de Emagrecimento'!C72=0),TRUE)","v":true},{"$f":"IF(A52,0,IF('Controlador de Emagrecimento'!B73=0,'Controlador de Emagrecimento'!B72+5,'Controlador de Emagrecimento'!B73))","v":"00:00:00"},{"$f":"'Controlador de Emagrecimento'!C73","v":0}]
[{"$f":"IF(('Controlador de Emagrecimento'!C74=0)*('Controlador de Emagrecimento'!C73=0),TRUE)","v":true},{"$f":"IF(A53,0,IF('Controlador de Emagrecimento'!B74=0,'Controlador de Emagrecimento'!B73+5,'Controlador de Emagrecimento'!B74))","v":"00:00:00"},{"$f":"'Controlador de Emagrecimento'!C74","v":0}]
[{"$f":"IF(('Controlador de Emagrecimento'!C75=0)*('Controlador de Emagrecimento'!C74=0),TRUE)","v":true},{"$f":"IF(A54,0,IF('Controlador de Emagrecimento'!B75=0,'Controlador de Emagrecimento'!B74+5,'Controlador de Emagrecimento'!B75))","v":"00:00:00"},{"$f":"'Controlador de Emagrecimento'!C75","v":0}]
[{"$f":"IF(('Controlador de Emagrecimento'!C76=0)*('Controlador de Emagrecimento'!C75=0),TRUE)","v":true},{"$f":"IF(A55,0,IF('Controlador de Emagrecimento'!B76=0,'Controlador de Emagrecimento'!B75+5,'Controlador de Emagrecimento'!B76))","v":"00:00:00"},{"$f":"'Controlador de Emagrecimento'!C76","v":0}]
[{"$f":"IF(('Controlador de Emagrecimento'!C77=0)*('Controlador de Emagrecimento'!C76=0),TRUE)","v":true},{"$f":"IF(A56,0,IF('Controlador de Emagrecimento'!B77=0,'Controlador de Emagrecimento'!B76+5,'Controlador de Emagrecimento'!B77))","v":"00:00:00"},{"$f":"'Controlador de Emagrecimento'!C77","v":0}]
[{"$f":"IF(('Controlador de Emagrecimento'!C78=0)*('Controlador de Emagrecimento'!C77=0),TRUE)","v":true},{"$f":"IF(A57,0,IF('Controlador de Emagrecimento'!B78=0,'Controlador de Emagrecimento'!B77+5,'Controlador de Emagrecimento'!B78))","v":"00:00:00"},{"$f":"'Controlador de Emagrecimento'!C78","v":0}]
[{"$f":"IF(('Controlador de Emagrecimento'!C79=0)*('Controlador de Emagrecimento'!C78=0),TRUE)","v":true},{"$f":"IF(A58,0,IF('Controlador de Emagrecimento'!B79=0,'Controlador de Emagrecimento'!B78+5,'Controlador de Emagrecimento'!B79))","v":"00:00:00"},{"$f":"'Controlador de Emagrecimento'!C79","v":0}]
[{"$f":"IF(('Controlador de Emagrecimento'!C80=0)*('Controlador de Emagrecimento'!C79=0),TRUE)","v":true},{"$f":"IF(A59,0,IF('Controlador de Emagrecimento'!B80=0,'Controlador de Emagrecimento'!B79+5,'Controlador de Emagrecimento'!B80))","v":"00:00:00"},{"$f":"'Controlador de Emagrecimento'!C80","v":0}]
[{"$f":"IF(('Controlador de Emagrecimento'!C81=0)*('Controlador de Emagrecimento'!C80=0),TRUE)","v":true},{"$f":"IF(A60,0,IF('Controlador de Emagrecimento'!B81=0,'Controlador de Emagrecimento'!B80+5,'Controlador de Emagrecimento'!B81))","v":"00:00:00"},{"$f":"'Controlador de Emagrecimento'!C81","v":0}]
[{"$f":"IF(('Controlador de Emagrecimento'!C82=0)*('Controlador de Emagrecimento'!C81=0),TRUE)","v":true},{"$f":"IF(A61,0,IF('Controlador de Emagrecimento'!B82=0,'Controlador de Emagrecimento'!B81+5,'Controlador de Emagrecimento'!B82))","v":"00:00:00"},{"$f":"'Controlador de Emagrecimento'!C82","v":0}]
[{"$f":"IF(('Controlador de Emagrecimento'!C83=0)*('Controlador de Emagrecimento'!C82=0),TRUE)","v":true},{"$f":"IF(A62,0,IF('Controlador de Emagrecimento'!B83=0,'Controlador de Emagrecimento'!B82+5,'Controlador de Emagrecimento'!B83))","v":"00:00:00"},{"$f":"'Controlador de Emagrecimento'!C83","v":0}]
[{"$f":"IF(('Controlador de Emagrecimento'!C84=0)*('Controlador de Emagrecimento'!C83=0),TRUE)","v":true},{"$f":"IF(A63,0,IF('Controlador de Emagrecimento'!B84=0,'Controlador de Emagrecimento'!B83+5,'Controlador de Emagrecimento'!B84))","v":"00:00:00"},{"$f":"'Controlador de Emagrecimento'!C84","v":0}]
[{"$f":"IF(('Controlador de Emagrecimento'!C85=0)*('Controlador de Emagrecimento'!C84=0),TRUE)","v":true},{"$f":"IF(A64,0,IF('Controlador de Emagrecimento'!B85=0,'Controlador de Emagrecimento'!B84+5,'Controlador de Emagrecimento'!B85))","v":"00:00:00"},{"$f":"'Controlador de Emagrecimento'!C85","v":0}]
[{"$f":"IF(('Controlador de Emagrecimento'!C86=0)*('Controlador de Emagrecimento'!C85=0),TRUE)","v":true},{"$f":"IF(A65,0,IF('Controlador de Emagrecimento'!B86=0,'Controlador de Emagrecimento'!B85+5,'Controlador de Emagrecimento'!B86))","v":"00:00:00"},{"$f":"'Controlador de Emagrecimento'!C86","v":0}]
[{"$f":"IF(('Controlador de Emagrecimento'!C87=0)*('Controlador de Emagrecimento'!C86=0),TRUE)","v":true},{"$f":"IF(A66,0,IF('Controlador de Emagrecimento'!B87=0,'Controlador de Emagrecimento'!B86+5,'Controlador de Emagrecimento'!B87))","v":"00:00:00"},{"$f":"'Controlador de Emagrecimento'!C87","v":0}]
[{"$f":"IF(('Controlador de Emagrecimento'!C88=0)*('Controlador de Emagrecimento'!C87=0),TRUE)","v":true},{"$f":"IF(A67,0,IF('Controlador de Emagrecimento'!B88=0,'Controlador de Emagrecimento'!B87+5,'Controlador de Emagrecimento'!B88))","v":"00:00:00"},{"$f":"'Controlador de Emagrecimento'!C88","v":0}]
[{"$f":"IF(('Controlador de Emagrecimento'!C89=0)*('Controlador de Emagrecimento'!C88=0),TRUE)","v":true},{"$f":"IF(A68,0,IF('Controlador de Emagrecimento'!B89=0,'Controlador de Emagrecimento'!B88+5,'Controlador de Emagrecimento'!B89))","v":"00:00:00"},{"$f":"'Controlador de Emagrecimento'!C89","v":0}]
[{"$f":"IF(('Controlador de Emagrecimento'!C90=0)*('Controlador de Emagrecimento'!C89=0),TRUE)","v":true},{"$f":"IF(A69,0,IF('Controlador de Emagrecimento'!B90=0,'Controlador de Emagrecimento'!B89+5,'Controlador de Emagrecimento'!B90))","v":"00:00:00"},{"$f":"'Controlador de Emagrecimento'!C90","v":0}]
[{"$f":"IF(('Controlador de Emagrecimento'!C91=0)*('Controlador de Emagrecimento'!C90=0),TRUE)","v":true},{"$f":"IF(A70,0,IF('Controlador de Emagrecimento'!B91=0,'Controlador de Emagrecimento'!B90+5,'Controlador de Emagrecimento'!B91))","v":"00:00:00"},{"$f":"'Controlador de Emagrecimento'!C91","v":0}]
[{"$f":"IF(('Controlador de Emagrecimento'!C92=0)*('Controlador de Emagrecimento'!C91=0),TRUE)","v":true},{"$f":"IF(A71,0,IF('Controlador de Emagrecimento'!B92=0,'Controlador de Emagrecimento'!B91+5,'Controlador de Emagrecimento'!B92))","v":"00:00:00"},{"$f":"'Controlador de Emagrecimento'!C92","v":0}]
[{"$f":"IF(('Controlador de Emagrecimento'!C93=0)*('Controlador de Emagrecimento'!C92=0),TRUE)","v":true},{"$f":"IF(A72,0,IF('Controlador de Emagrecimento'!B93=0,'Controlador de Emagrecimento'!B92+5,'Controlador de Emagrecimento'!B93))","v":"00:00:00"},{"$f":"'Controlador de Emagrecimento'!C93","v":0}]
[{"$f":"IF(('Controlador de Emagrecimento'!C94=0)*('Controlador de Emagrecimento'!C93=0),TRUE)","v":true},{"$f":"IF(A73,0,IF('Controlador de Emagrecimento'!B94=0,'Controlador de Emagrecimento'!B93+5,'Controlador de Emagrecimento'!B94))","v":"00:00:00"},{"$f":"'Controlador de Emagrecimento'!C94","v":0}]
[{"$f":"IF(('Controlador de Emagrecimento'!C95=0)*('Controlador de Emagrecimento'!C94=0),TRUE)","v":true},{"$f":"IF(A74,0,IF('Controlador de Emagrecimento'!B95=0,'Controlador de Emagrecimento'!B94+5,'Controlador de Emagrecimento'!B95))","v":"00:00:00"},{"$f":"'Controlador de Emagrecimento'!C95","v":0}]
[{"$f":"IF(('Controlador de Emagrecimento'!C96=0)*('Controlador de Emagrecimento'!C95=0),TRUE)","v":true},{"$f":"IF(A75,0,IF('Controlador de Emagrecimento'!B96=0,'Controlador de Emagrecimento'!B95+5,'Controlador de Emagrecimento'!B96))","v":"00:00:00"},{"$f":"'Controlador de Emagrecimento'!C96","v":0}]
[{"$f":"IF(('Controlador de Emagrecimento'!C97=0)*('Controlador de Emagrecimento'!C96=0),TRUE)","v":true},{"$f":"IF(A76,0,IF('Controlador de Emagrecimento'!B97=0,'Controlador de Emagrecimento'!B96+5,'Controlador de Emagrecimento'!B97))","v":"00:00:00"},{"$f":"'Controlador de Emagrecimento'!C97","v":0}]
[{"$f":"IF(('Controlador de Emagrecimento'!C98=0)*('Controlador de Emagrecimento'!C97=0),TRUE)","v":true},{"$f":"IF(A77,0,IF('Controlador de Emagrecimento'!B98=0,'Controlador de Emagrecimento'!B97+5,'Controlador de Emagrecimento'!B98))","v":"00:00:00"},{"$f":"'Controlador de Emagrecimento'!C98","v":0}]
[{"$f":"IF(('Controlador de Emagrecimento'!C99=0)*('Controlador de Emagrecimento'!C98=0),TRUE)","v":true},{"$f":"IF(A78,0,IF('Controlador de Emagrecimento'!B99=0,'Controlador de Emagrecimento'!B98+5,'Controlador de Emagrecimento'!B99))","v":"00:00:00"},{"$f":"'Controlador de Emagrecimento'!C99","v":0}]
[{"$f":"IF(('Controlador de Emagrecimento'!C100=0)*('Controlador de Emagrecimento'!C99=0),TRUE)","v":true},{"$f":"IF(A79,0,IF('Controlador de Emagrecimento'!B100=0,'Controlador de Emagrecimento'!B99+5,'Controlador de Emagrecimento'!B100))","v":"00:00:00"},{"$f":"'Controlador de Emagrecimento'!C100","v":0}]
[{"$f":"IF(('Controlador de Emagrecimento'!C101=0)*('Controlador de Emagrecimento'!C100=0),TRUE)","v":true},{"$f":"IF(A80,0,IF('Controlador de Emagrecimento'!B101=0,'Controlador de Emagrecimento'!B100+5,'Controlador de Emagrecimento'!B101))","v":"00:00:00"},{"$f":"'Controlador de Emagrecimento'!C101","v":0}]
[{"$f":"IF(('Controlador de Emagrecimento'!C102=0)*('Controlador de Emagrecimento'!C101=0),TRUE)","v":true},{"$f":"IF(A81,0,IF('Controlador de Emagrecimento'!B102=0,'Controlador de Emagrecimento'!B101+5,'Controlador de Emagrecimento'!B102))","v":"00:00:00"},{"$f":"'Controlador de Emagrecimento'!C102","v":0}]
[{"$f":"IF(('Controlador de Emagrecimento'!C103=0)*('Controlador de Emagrecimento'!C102=0),TRUE)","v":true},{"$f":"IF(A82,0,IF('Controlador de Emagrecimento'!B103=0,'Controlador de Emagrecimento'!B102+5,'Controlador de Emagrecimento'!B103))","v":"00:00:00"},{"$f":"'Controlador de Emagrecimento'!C103","v":0}]
[{"$f":"IF(('Controlador de Emagrecimento'!C104=0)*('Controlador de Emagrecimento'!C103=0),TRUE)","v":true},{"$f":"IF(A83,0,IF('Controlador de Emagrecimento'!B104=0,'Controlador de Emagrecimento'!B103+5,'Controlador de Emagrecimento'!B104))","v":"00:00:00"},{"$f":"'Controlador de Emagrecimento'!C104","v":0}]
[{"$f":"IF(('Controlador de Emagrecimento'!C105=0)*('Controlador de Emagrecimento'!C104=0),TRUE)","v":true},{"$f":"IF(A84,0,IF('Controlador de Emagrecimento'!B105=0,'Controlador de Emagrecimento'!B104+5,'Controlador de Emagrecimento'!B105))","v":"00:00:00"},{"$f":"'Controlador de Emagrecimento'!C105","v":0}]
[{"$f":"IF(('Controlador de Emagrecimento'!C106=0)*('Controlador de Emagrecimento'!C105=0),TRUE)","v":true},{"$f":"IF(A85,0,IF('Controlador de Emagrecimento'!B106=0,'Controlador de Emagrecimento'!B105+5,'Controlador de Emagrecimento'!B106))","v":"00:00:00"},{"$f":"'Controlador de Emagrecimento'!C106","v":0}]
[{"$f":"IF(('Controlador de Emagrecimento'!C107=0)*('Controlador de Emagrecimento'!C106=0),TRUE)","v":true},{"$f":"IF(A86,0,IF('Controlador de Emagrecimento'!B107=0,'Controlador de Emagrecimento'!B106+5,'Controlador de Emagrecimento'!B107))","v":"00:00:00"},{"$f":"'Controlador de Emagrecimento'!C107","v":0}]
[{"$f":"IF(('Controlador de Emagrecimento'!C108=0)*('Controlador de Emagrecimento'!C107=0),TRUE)","v":true},{"$f":"IF(A87,0,IF('Controlador de Emagrecimento'!B108=0,'Controlador de Emagrecimento'!B107+5,'Controlador de Emagrecimento'!B108))","v":"00:00:00"},{"$f":"'Controlador de Emagrecimento'!C108","v":0}]
[{"$f":"IF(('Controlador de Emagrecimento'!C109=0)*('Controlador de Emagrecimento'!C108=0),TRUE)","v":true},{"$f":"IF(A88,0,IF('Controlador de Emagrecimento'!B109=0,'Controlador de Emagrecimento'!B108+5,'Controlador de Emagrecimento'!B109))","v":"00:00:00"},{"$f":"'Controlador de Emagrecimento'!C109","v":0}]
[{"$f":"IF(('Controlador de Emagrecimento'!C110=0)*('Controlador de Emagrecimento'!C109=0),TRUE)","v":true},{"$f":"IF(A89,0,IF('Controlador de Emagrecimento'!B110=0,'Controlador de Emagrecimento'!B109+5,'Controlador de Emagrecimento'!B110))","v":"00:00:00"},{"$f":"'Controlador de Emagrecimento'!C110","v":0}]
[{"$f":"IF(('Controlador de Emagrecimento'!C111=0)*('Controlador de Emagrecimento'!C110=0),TRUE)","v":true},{"$f":"IF(A90,0,IF('Controlador de Emagrecimento'!B111=0,'Controlador de Emagrecimento'!B110+5,'Controlador de Emagrecimento'!B111))","v":"00:00:00"},{"$f":"'Controlador de Emagrecimento'!C111","v":0}]
[{"$f":"IF(('Controlador de Emagrecimento'!C112=0)*('Controlador de Emagrecimento'!C111=0),TRUE)","v":true},{"$f":"IF(A91,0,IF('Controlador de Emagrecimento'!B112=0,'Controlador de Emagrecimento'!B111+5,'Controlador de Emagrecimento'!B112))","v":"00:00:00"},{"$f":"'Controlador de Emagrecimento'!C112","v":0}]
[{"$f":"IF(('Controlador de Emagrecimento'!C113=0)*('Controlador de Emagrecimento'!C112=0),TRUE)","v":true},{"$f":"IF(A92,0,IF('Controlador de Emagrecimento'!B113=0,'Controlador de Emagrecimento'!B112+5,'Controlador de Emagrecimento'!B113))","v":"00:00:00"},{"$f":"'Controlador de Emagrecimento'!C113","v":0}]
[{"$f":"IF(('Controlador de Emagrecimento'!C114=0)*('Controlador de Emagrecimento'!C113=0),TRUE)","v":true},{"$f":"IF(A93,0,IF('Controlador de Emagrecimento'!B114=0,'Controlador de Emagrecimento'!B113+5,'Controlador de Emagrecimento'!B114))","v":"00:00:00"},{"$f":"'Controlador de Emagrecimento'!C114","v":0}]
[{"$f":"IF(('Controlador de Emagrecimento'!C115=0)*('Controlador de Emagrecimento'!C114=0),TRUE)","v":true},{"$f":"IF(A94,0,IF('Controlador de Emagrecimento'!B115=0,'Controlador de Emagrecimento'!B114+5,'Controlador de Emagrecimento'!B115))","v":"00:00:00"},{"$f":"'Controlador de Emagrecimento'!C115","v":0}]
[{"$f":"IF(('Controlador de Emagrecimento'!C116=0)*('Controlador de Emagrecimento'!C115=0),TRUE)","v":true},{"$f":"IF(A95,0,IF('Controlador de Emagrecimento'!B116=0,'Controlador de Emagrecimento'!B115+5,'Controlador de Emagrecimento'!B116))","v":"00:00:00"},{"$f":"'Controlador de Emagrecimento'!C116","v":0}]
[{"$f":"IF(('Controlador de Emagrecimento'!C117=0)*('Controlador de Emagrecimento'!C116=0),TRUE)","v":true},{"$f":"IF(A96,0,IF('Controlador de Emagrecimento'!B117=0,'Controlador de Emagrecimento'!B116+5,'Controlador de Emagrecimento'!B117))","v":"00:00:00"},{"$f":"'Controlador de Emagrecimento'!C117","v":0}]
[{"$f":"IF(('Controlador de Emagrecimento'!C118=0)*('Controlador de Emagrecimento'!C117=0),TRUE)","v":true},{"$f":"IF(A97,0,IF('Controlador de Emagrecimento'!B118=0,'Controlador de Emagrecimento'!B117+5,'Controlador de Emagrecimento'!B118))","v":"00:00:00"},{"$f":"'Controlador de Emagrecimento'!C118","v":0}]
[{"$f":"IF(('Controlador de Emagrecimento'!C119=0)*('Controlador de Emagrecimento'!C118=0),TRUE)","v":true},{"$f":"IF(A98,0,IF('Controlador de Emagrecimento'!B119=0,'Controlador de Emagrecimento'!B118+5,'Controlador de Emagrecimento'!B119))","v":"00:00:00"},{"$f":"'Controlador de Emagrecimento'!C119","v":0}]
[{"$f":"IF(('Controlador de Emagrecimento'!C120=0)*('Controlador de Emagrecimento'!C119=0),TRUE)","v":true},{"$f":"IF(A99,0,IF('Controlador de Emagrecimento'!B120=0,'Controlador de Emagrecimento'!B119+5,'Controlador de Emagrecimento'!B120))","v":"00:00:00"},{"$f":"'Controlador de Emagrecimento'!C120","v":0}]
[{"$f":"IF(('Controlador de Emagrecimento'!C121=0)*('Controlador de Emagrecimento'!C120=0),TRUE)","v":true},{"$f":"IF(A100,0,IF('Controlador de Emagrecimento'!B121=0,'Controlador de Emagrecimento'!B120+5,'Controlador de Emagrecimento'!B121))","v":"00:00:00"},{"$f":"'Controlador de Emagrecimento'!C121","v":0}]
[{"$f":"IF(('Controlador de Emagrecimento'!C122=0)*('Controlador de Emagrecimento'!C121=0),TRUE)","v":true},{"$f":"IF(A101,0,IF('Controlador de Emagrecimento'!B122=0,'Controlador de Emagrecimento'!B121+5,'Controlador de Emagrecimento'!B122))","v":"00:00:00"},{"$f":"'Controlador de Emagrecimento'!C122","v":0}]
[{"$f":"IF(('Controlador de Emagrecimento'!C123=0)*('Controlador de Emagrecimento'!C122=0),TRUE)","v":true},{"$f":"IF(A102,0,IF('Controlador de Emagrecimento'!B123=0,'Controlador de Emagrecimento'!B122+5,'Controlador de Emagrecimento'!B123))","v":"00:00:00"},{"$f":"'Controlador de Emagrecimento'!C123","v":0}]
[{"$f":"IF(('Controlador de Emagrecimento'!C124=0)*('Controlador de Emagrecimento'!C123=0),TRUE)","v":true},{"$f":"IF(A103,0,IF('Controlador de Emagrecimento'!B124=0,'Controlador de Emagrecimento'!B123+5,'Controlador de Emagrecimento'!B124))","v":"00:00:00"},{"$f":"'Controlador de Emagrecimento'!C124","v":0}]
[{"$f":"IF(('Controlador de Emagrecimento'!C125=0)*('Controlador de Emagrecimento'!C124=0),TRUE)","v":true},{"$f":"IF(A104,0,IF('Controlador de Emagrecimento'!B125=0,'Controlador de Emagrecimento'!B124+5,'Controlador de Emagrecimento'!B125))","v":"00:00:00"},{"$f":"'Controlador de Emagrecimento'!C125","v":0}]
[{"$f":"IF(('Controlador de Emagrecimento'!C126=0)*('Controlador de Emagrecimento'!C125=0),TRUE)","v":true},{"$f":"IF(A105,0,IF('Controlador de Emagrecimento'!B126=0,'Controlador de Emagrecimento'!B125+5,'Controlador de Emagrecimento'!B126))","v":"00:00:00"},{"$f":"'Controlador de Emagrecimento'!C126","v":0}]
[{"$f":"IF(('Controlador de Emagrecimento'!C127=0)*('Controlador de Emagrecimento'!C126=0),TRUE)","v":true},{"$f":"IF(A106,0,IF('Controlador de Emagrecimento'!B127=0,'Controlador de Emagrecimento'!B126+5,'Controlador de Emagrecimento'!B127))","v":"00:00:00"},{"$f":"'Controlador de Emagrecimento'!C127","v":0}]
[{"$f":"IF(('Controlador de Emagrecimento'!C128=0)*('Controlador de Emagrecimento'!C127=0),TRUE)","v":true},{"$f":"IF(A107,0,IF('Controlador de Emagrecimento'!B128=0,'Controlador de Emagrecimento'!B127+5,'Controlador de Emagrecimento'!B128))","v":"00:00:00"},{"$f":"'Controlador de Emagrecimento'!C128","v":0}]
[{"$f":"IF(('Controlador de Emagrecimento'!C129=0)*('Controlador de Emagrecimento'!C128=0),TRUE)","v":true},{"$f":"IF(A108,0,IF('Controlador de Emagrecimento'!B129=0,'Controlador de Emagrecimento'!B128+5,'Controlador de Emagrecimento'!B129))","v":"00:00:00"},{"$f":"'Controlador de Emagrecimento'!C129","v":0}]